[Event "VIII Lorca Open-A 2019"]
[Site "Lorca"]
[Date "2019.12.29"]
[Round "6.12"]
[White "Barbero Sendic, Alejandro"]
[Black "Holm, Kristian Stuvik"]
[Result "1/2-1/2"]
[ECO "B31"]
[WhiteElo "2336"]
[BlackElo "2489"]
[Annotator "ChessBase"]
[PlyCount "54"]
[EventDate "2019.12.26"]
[EventType "swiss"]
[EventCountry "ESP"]
[SourceTitle "playchess.com"]
[Source "ChessBase"]
[SourceQuality "1"]
[TimeControl "5400+30"]

1. e4 {[%emt 0:02:55]} c5 {[%emt 0:00:00]} 2. Nf3 {[%emt 0:00:11]} Nc6 {[%emt 0:00:00]} 3. Bb5 {[%emt 0:00:09]} g6 {[%emt 0:00:00]} 4. O-O {[%emt 0:00:12]} Bg7 {[%emt 0:00:00]} 5. Nc3 {[%emt 0:00:15]} e5 {[%emt 0:01:49]} 6. a3 {[%emt 0:00:28]} Nge7 {[%emt 0:00:44]} 7. b4 {[%emt 0:00:30]} d6 {[%emt 0:01:30]} 8. bxc5 {[%emt 0:01:31]} dxc5 {[%emt 0:00:04]} 9. Bc4 {[%emt 0:00:32]} O-O {[%emt 0:00:51]} 10. d3 {[%emt 0:05:07]} h6 {[%emt 0:02:23]} 11. Rb1 {[%emt 0:07:43]} b6 {[%emt 0:04:04]} 12. Nd5 {[%emt 0:04:31]} Qd6 {[%emt 0:12:40]} 13. Bd2 {[%emt 0:06:15]} Be6 {[%emt 0:02:14]} 14. Ne3 {[%emt 0:01:36]} Rab8 {[%emt 0:02:18]} 15. Re1 {[%emt 0:02:07]} Rfd8 {[%emt 0:02:30]} 16. h3 {[%emt 0:04:32]} Bxc4 {[%emt 0:11:21]} 17. Nxc4 {[%emt 0:00:33]} Qe6 {[%emt 0:00:24]} 18. a4 {[%emt 0:03:07]} Kh7 {[%emt 0:08:02]} 19. Rb5 {[%emt 0:05:34]} Nc8 {[%emt 0:05:32]} 20. Qb1 {[%emt 0:00:33]} Nd6 {[%emt 0:00:47]} 21. Nxd6 {[%emt 0:00:06]} Rxd6 {[%emt 0:00:24]} 22. Bc3 {[%emt 0:02:28]} c4 {[%emt 0:11:22]} 23. a5 {[%emt 0:03:23]} cxd3 {[%emt 0:00:33]} 24. cxd3 {[%emt 0:00:11]} Rbd8 {[%emt 0:02:45]} 25. axb6 {[%emt 0:05:50]} Rxd3 {[%emt 0:02:21]} 26. Ba1 {[%emt 0:03:26]} axb6 {[%emt 0:01:42]} 27. Rxb6 {[%emt 0:00:07]} R3d6 {[%emt 0:00:51]} 1/2-1/2

[Event "VIII Lorca Open-A 2019"]
[Site "Lorca"]
[Date "2019.12.29"]
[Round "6.13"]
[White "Peng, Li Min"]
[Black "Alonso Garcia, Aaron"]
[Result "*"]
[ECO "A28"]
[WhiteElo "2451"]
[BlackElo "2258"]
[Annotator "ChessBase"]
[PlyCount "34"]
[EventDate "2019.12.26"]
[EventType "swiss"]
[EventCountry "ESP"]
[SourceTitle "playchess.com"]
[Source "ChessBase"]
[SourceQuality "1"]
[TimeControl "5400+30"]

1. c4 {[%emt 1:30:30]} e5 {[%emt 1:30:30]} 2. Nc3 {[%emt 0:00:30]} Nf6 {[%emt 0:00:30]} 3. Nf3 {[%emt 0:00:30]} Nc6 {[%emt 0:00:30]} 4. e3 {[%emt 0:00:30]} d5 {[%emt 0:00:30]} 5. cxd5 {[%emt 0:00:30]} Nxd5 {[%emt 0:00:30]} 6. Bb5 {[%emt 0:00:30]} Nxc3 {[%emt 0:00:30]} 7. bxc3 {[%emt 0:00:30]} Bd6 {[%emt 0:00:30]} 8. O-O {[%emt 0:00:30]} e4 {[%emt 0:00:30]} 9. Nd4 {[%emt 0:00:30]} O-O {[%emt 0:00:30]} 10. Nxc6 {[%emt 0:00:30]} bxc6 {[%emt 0:00:30]} 11. Be2 {[%emt 0:00:30]} Re8 {[%emt 0:00:30]} 12. f4 {[%emt 0:00:30]} exf3 {[%emt 0:00:30]} 13. Bxf3 {[%emt 0:00:30]} Ba6 {[%emt 0:00:30]} 14. Rf2 {[%emt 0:00:30]} Rb8 {[%emt 0:00:30]} 15. d4 {[%emt 0:00:30]} c5 {[%emt 0:00:30]} 16. g3 {[%emt 0:00:30]} cxd4 {[%emt 0:00:30]} 17. cxd4 {[%emt 0:00:30]} c5 {[%emt 0:00:30]} *

[Event "VIII Lorca Open-A 2019"]
[Site "Lorca"]
[Date "2019.12.29"]
[Round "6.13"]
[White "Real De Azua, Ernesto"]
[Black "Arias Igual, Alejandro"]
[Result "0-1"]
[ECO "A28"]
[WhiteElo "2450"]
[BlackElo "2208"]
[Annotator "ChessBase"]
[PlyCount "88"]
[EventDate "2019.12.26"]
[EventType "swiss"]
[EventCountry "ESP"]
[SourceTitle "playchess.com"]
[Source "ChessBase"]
[SourceQuality "1"]
[TimeControl "5400+30"]

1. c4 {[%emt 1:30:30]} e5 {[%emt 1:30:30]} 2. Nc3 {[%emt 0:00:30]} Nf6 {[%emt 0:00:30]} 3. Nf3 {[%emt 0:00:30]} Nc6 {[%emt 0:00:30]} 4. e3 {[%emt 0:00:30]} d5 {[%emt 0:00:30]} 5. cxd5 {[%emt 0:00:30]} Nxd5 {[%emt 0:00:30]} 6. Bb5 {[%emt 0:00:30]} Nxc3 {[%emt 0:00:30]} 7. bxc3 {[%emt 0:00:30]} Bd6 {[%emt 0:00:30]} 8. O-O {[%emt 0:00:30]} e4 {[%emt 0:00:30]} 9. Nd4 {[%emt 0:00:30]} O-O {[%emt 0:00:30]} 10. Nxc6 {[%emt 0:00:30]} bxc6 {[%emt 0:00:30]} 11. Be2 {[%emt 0:00:30]} Re8 {[%emt 0:00:30]} 12. f4 {[%emt 0:00:30]} exf3 {[%emt 0:00:30]} 13. Bxf3 {[%emt 0:00:30]} Ba6 {[%emt 0:00:30]} 14. Rf2 {[%emt 0:00:30]} Rb8 {[%emt 0:00:30]} 15. d4 {[%emt 0:00:30]} c5 {[%emt 0:00:30]} 16. g3 {[%emt 0:00:30]} cxd4 {[%emt 0:00:30]} 17. cxd4 {[%emt 0:00:30]} c5 {[%emt 0:00:30]} 18. Ba3 {[%emt 0:00:30]} cxd4 {[%emt 0:00:30]} 19. Bxd6 {[%emt 0:00:30]} dxe3 {[%emt 0:00:30]} 20. Bxb8 {[%emt 0:00:30]} exf2+ {[%emt 0:00:30]} 21. Kxf2 {[%emt 0:00:30]} Qb6+ {[%emt 0:00:30]} 22. Kg2 {[%emt 0:00:30]} Qb2+ {[%emt 0:00:30]} 23. Kg1 {[%emt 0:00:30]} Rxb8 {[%emt 0:00:30]} 24. Rc1 {[%emt 0:00:30]} Qb6+ {[%emt 0:00:30]} 25. Kg2 {[%emt 0:00:30]} Bb7 {[%emt 0:00:30]} 26. Rc2 {[%emt 0:00:30]} g6 {[%emt 0:00:30]} 27. Bxb7 {[%emt 0:00:30]} Qxb7+ {[%emt 0:00:30]} 28. Qf3 {[%emt 0:00:30]} Kg7 {[%emt 0:00:30]} 29. Qxb7 {[%emt 0:00:30]} Rxb7 {[%emt 0:00:30]} 30. Kf3 {[%emt 0:00:30]} h5 {[%emt 0:00:30]} 31. Rd2 {[%emt 0:00:30]} Rb4 {[%emt 0:00:30]} 32. Rc2 {[%emt 0:00:30]} Ra4 {[%emt 0:00:30]} 33. Rb2 {[%emt 0:00:30]} h4 {[%emt 0:00:30]} 34. Rc2 {[%emt 0:00:30]} hxg3 {[%emt 0:00:30]} 35. hxg3 {[%emt 0:00:30]} f5 {[%emt 0:00:30]} 36. Kg2 {[%emt 0:00:30]} Ra3 {[%emt 0:00:30]} 37. Rd2 {[%emt 0:00:30]} g5 {[%emt 0:00:30]} 38. Rc2 {[%emt 0:00:30]} a5 {[%emt 0:00:30]} 39. Rb2 {[%emt 0:00:30]} a4 {[%emt 0:00:30]} 40. Kf2 {[%emt 0:00:30]} Kg6 {[%emt 0:00:30]} 41. Kg2 {[%emt 0:00:30]} Kh5 {[%emt 0:00:30]} 42. Rc2 {[%emt 0:00:30]} Kg4 {[%emt 0:00:30]} 43. Rc4+ {[%emt 0:00:30]} f4 {[%emt 0:00:30]} 44. gxf4 {[%emt 0:00:30]} Rxa2+ {[%emt 0:00:30]} 0-1

[Event "VIII Lorca Open-A 2019"]
[Site "Lorca"]
[Date "2019.12.29"]
[Round "6.14"]
[White "Peng, Li Min"]
[Black "Alonso Garcia, Aaron"]
[Result "1/2-1/2"]
[ECO "B48"]
[WhiteElo "2451"]
[BlackElo "2258"]
[Annotator "ChessBase"]
[PlyCount "49"]
[EventDate "2019.12.26"]
[EventType "swiss"]
[EventCountry "ESP"]
[SourceTitle "playchess.com"]
[Source "ChessBase"]
[SourceQuality "1"]
[TimeControl "5400+30"]

1. e4 {[%emt 1:30:30]} c5 {[%emt 0:01:09]} 2. Nf3 {[%emt 0:00:00]} e6 {[%emt 0:00:07]} 3. d4 {[%emt 0:00:00]} cxd4 {[%emt 0:00:06]} 4. Nxd4 {[%emt 0:00:00]} Nc6 {[%emt 0:00:04]} 5. Nc3 {[%emt 0:00:00]} Qc7 {[%emt 0:00:07]} 6. Be3 {[%emt 0:00:00]} a6 {[%emt 0:00:05]} 7. Qf3 {[%emt 0:00:00]} Nf6 {[%emt 0:06:27]} 8. O-O-O {[%emt 0:00:00]} Bb4 {[%emt 0:02:39]} 9. Nxc6 {[%emt 0:00:00]} bxc6 {[%emt 0:13:15]} 10. Bd4 {[%emt 0:00:00]} Be7 {[%emt 0:00:17]} 11. e5 {[%emt 0:00:00]} Nd5 {[%emt 0:00:04]} 12. Ne4 {[%emt 0:00:00]} c5 {[%emt 0:22:09]} 13. Nd6+ {[%emt 0:00:00]} Bxd6 {[%emt 0:00:02]} 14. exd6 {[%emt 0:00:00]} Qxd6 {[%emt 0:00:57]} 15. Bxg7 {[%emt 0:00:00]} Rg8 {[%emt 0:00:04]} 16. Bh6 {[%emt 0:00:00]} Rb8 {[%emt 0:02:53]} 17. g3 {[%emt 0:00:00]} Qb6 {[%emt 0:04:32]} 18. b3 {[%emt 0:00:00]} Bb7 {[%emt 0:00:58]} 19. Bd3 {[%emt 0:00:00]} Qb4 {[%emt 0:07:06]} 20. Rhe1 {[%emt 0:09:30]} Qa3+ {[%emt 0:36:59]} 21. Kd2 Qa5+ 22. Kc1 Qxa2 {[%emt 0:01:00]} 23. Be4 {[%emt 0:01:30]} Nb4 {[%emt 0:00:30]} 24. Rxd7 Nd5 {[%emt 0:00:30]} 25. Bd3 1/2-1/2

[Event "VIII Lorca Open-A 2019"]
[Site "Lorca"]
[Date "2019.12.29"]
[Round "6.14"]
[White "Real De Azua, Ernesto"]
[Black "Arias Igual, Alejandro"]
[Result "*"]
[ECO "B48"]
[WhiteElo "2450"]
[BlackElo "2208"]
[Annotator "ChessBase"]
[PlyCount "39"]
[EventDate "2019.12.26"]
[EventType "swiss"]
[EventCountry "ESP"]
[SourceTitle "playchess.com"]
[Source "ChessBase"]
[SourceQuality "1"]
[TimeControl "5400+30"]

1. e4 {[%emt 1:30:30]} c5 {[%emt 0:01:09]} 2. Nf3 {[%emt 0:00:00]} e6 {[%emt 0:00:07]} 3. d4 {[%emt 0:00:00]} cxd4 {[%emt 0:00:06]} 4. Nxd4 {[%emt 0:00:00]} Nc6 {[%emt 0:00:04]} 5. Nc3 {[%emt 0:00:00]} Qc7 {[%emt 0:00:07]} 6. Be3 {[%emt 0:00:00]} a6 {[%emt 0:00:05]} 7. Qf3 {[%emt 0:00:00]} Nf6 {[%emt 0:06:27]} 8. O-O-O {[%emt 0:00:00]} Bb4 {[%emt 1:25:55]} 9. Nxc6 {[%emt 0:00:00]} bxc6 {[%emt 0:13:15]} 10. Bd4 {[%emt 0:00:00]} Be7 {[%emt 1:11:01]} 11. e5 {[%emt 0:00:00]} Nd5 {[%emt 0:00:04]} 12. Ne4 {[%emt 0:00:00]} c5 {[%emt 0:22:09]} 13. Nd6+ {[%emt 0:00:00]} Bxd6 {[%emt 0:00:02]} 14. exd6 {[%emt 0:00:00]} Qxd6 {[%emt 0:00:57]} 15. Bxg7 {[%emt 0:00:00]} Rg8 {[%emt 0:00:04]} 16. Bh6 {[%emt 0:00:00]} Rb8 {[%emt 0:02:53]} 17. g3 {[%emt 0:00:00]} Qb6 {[%emt 0:04:32]} 18. b3 {[%emt 0:00:00]} Bb7 {[%emt 0:00:58]} 19. Bd3 {[%emt 0:00:00]} Qb4 {[%emt 0:07:06]} 20. Rhe1 {[%emt 0:00:00]} *

[Event "VIII Lorca Open-A 2019"]
[Site "Lorca"]
[Date "2019.12.29"]
[Round "6.15"]
[White "Raja Harshit"]
[Black "Ajay Karthikeyan"]
[Result "1/2-1/2"]
[ECO "E60"]
[WhiteElo "2447"]
[BlackElo "2203"]
[Annotator "ChessBase"]
[PlyCount "39"]
[EventDate "2019.12.26"]
[EventType "swiss"]
[EventCountry "ESP"]
[SourceTitle "playchess.com"]
[Source "ChessBase"]
[SourceQuality "1"]
[TimeControl "5400+30"]

1. d4 {[%emt 1:30:30]} Nf6 {[%emt 1:30:30]} 2. Nf3 {[%emt 0:00:30]} g6 {[%emt 0:00:30]} 3. g3 {[%emt 0:00:30]} c5 {[%emt 0:00:30]} 4. Bg2 {[%emt 0:00:30]} Bg7 {[%emt 0:00:30]} 5. O-O {[%emt 0:00:30]} O-O {[%emt 0:00:30]} 6. c4 {[%emt 0:00:30]} d6 {[%emt 0:00:30]} 7. dxc5 {[%emt 0:00:30]} dxc5 {[%emt 0:00:30]} 8. Ne5 {[%emt 0:00:30]} Qc7 {[%emt 0:00:30]} 9. Nd3 {[%emt 0:00:30]} Bf5 {[%emt 0:00:30]} 10. Nc3 {[%emt 0:00:30]} Rd8 {[%emt 0:00:30]} 11. e4 {[%emt 0:00:30]} Bg4 {[%emt 0:00:30]} 12. f3 {[%emt 0:00:30]} Be6 {[%emt 0:00:30]} 13. Bf4 {[%emt 0:00:30]} Qb6 {[%emt 0:00:30]} 14. b3 {[%emt 0:00:30]} Nh5 {[%emt 0:00:30]} 15. Qc2 {[%emt 0:00:30]} Nxf4 {[%emt 0:00:30]} 16. Nxf4 {[%emt 0:00:30]} Nc6 17. Na4 Qa5 {[%emt 0:01:00]} 18. Nxe6 {[%emt 0:01:00]} fxe6 {[%emt 0:00:30]} 19. Rad1 {[%emt 0:00:30]} Qb6 {[%emt 0:00:30]} 20. Nc3 {[%emt 0:00:30]} 1/2-1/2

[Event "VIII Lorca Open-A 2019"]
[Site "Lorca"]
[Date "2019.12.29"]
[Round "7.3"]
[White "Marin, Mihail"]
[Black "Sivuk, Vitaly"]
[Result "1-0"]
[ECO "D78"]
[WhiteElo "2496"]
[BlackElo "2588"]
[Annotator "ChessBase"]
[PlyCount "69"]
[EventDate "2019.12.26"]
[EventType "swiss"]
[EventCountry "ESP"]
[SourceTitle "playchess.com"]
[Source "ChessBase"]
[SourceQuality "1"]
[TimeControl "5400+30"]

1. c4 {[%emt 0:00:00]} e6 {[%emt 0:00:00]} 2. g3 {[%emt 0:00:00]} d5 {[%emt 0:00:09]} 3. Bg2 {[%emt 0:00:00]} g6 {[%emt 0:00:12]} 4. Qb3 {[%emt 0:07:06]} c6 {[%emt 0:04:17]} 5. d4 {[%emt 0:02:51]} Bg7 {[%emt 0:00:11]} 6. Nf3 {[%emt 0:00:07]} Nf6 {[%emt 0:01:39]} 7. O-O {[%emt 0:00:16]} O-O {[%emt 0:00:08]} 8. Nc3 {[%emt 0:02:06]} b6 {[%emt 0:04:57]} 9. Rd1 {[%emt 0:17:03]} Bb7 {[%emt 0:03:32]} 10. Ne5 {[%emt 0:06:03]} Nfd7 {[%emt 0:06:27]} 11. Bf4 {[%emt 0:02:46]} Nxe5 {[%emt 0:11:11]} 12. Bxe5 {[%emt 0:00:40]} f6 {[%emt 0:01:47]} 13. Bf4 {[%emt 0:00:32]} g5 {[%emt 0:02:28]} 14. Bxb8 {[%emt 0:00:57]} Rxb8 {[%emt 0:01:17]} 15. cxd5 {[%emt 0:04:45]} cxd5 {[%emt 0:03:21]} 16. e4 {[%emt 0:00:47]} f5 {[%emt 0:00:59]} 17. exd5 {[%emt 0:03:53]} exd5 {[%emt 0:01:59]} 18. Bxd5+ {[%emt 0:12:11]} Kh8 {[%emt 0:00:11]} 19. Be6 {[%emt 0:00:41]} Bf3 {[%emt 0:10:02]} 20. Rd3 {[%emt 0:00:29]} g4 {[%emt 0:00:08]} 21. Bd5 {[%emt 0:04:29]} f4 {[%emt 0:06:28]} 22. Bxf3 {[%emt 0:01:54]} gxf3 {[%emt 0:00:45]} 23. Ne4 {[%emt 0:02:24]} Rb7 {[%emt 0:34:43]} 24. Nd2 {[%emt 0:07:26]} Bf6 {[%emt 0:02:36]} 25. Nxf3 {[%emt 0:00:49]} Rg7 {[%emt 0:00:03]} 26. Re1 {[%emt 0:02:25]} h5 {[%emt 0:00:19]} 27. Re4 {[%emt 0:00:46]} fxg3 {[%emt 0:00:18]} 28. hxg3 {[%emt 0:00:24]} Qc8 {[%emt 0:00:08]} 29. Kg2 {[%emt 0:03:33]} Qf5 {[%emt 0:00:12]} 30. Qe6 {[%emt 0:03:58]} Qg6 {[%emt 0:00:33]} 31. Rde3 {[%emt 0:00:57]} Qh7 {[%emt 0:00:43]} 32. Qd6 {[%emt 0:01:20]} Rgf7 {[%emt 0:00:36]} 33. Re8 {[%emt 0:00:50]} Qg7 {[%emt 0:00:13]} 34. R3e4 {[%emt 0:03:18]} Qh6 {[%emt 0:01:21]} 35. Ne5 {[%emt 0:01:06]} 1-0

[Event "VIII Lorca Open-A 2019"]
[Site "Lorca"]
[Date "2019.12.29"]
[Round "7.5"]
[White "Guerra Rivera, Salvador"]
[Black "Harutyunian, Tigran K."]
[Result "0-1"]
[ECO "C29"]
[WhiteElo "2314"]
[BlackElo "2540"]
[Annotator "ChessBase"]
[PlyCount "72"]
[EventDate "2019.12.26"]
[EventType "swiss"]
[EventCountry "ESP"]
[SourceTitle "playchess.com"]
[Source "ChessBase"]
[SourceQuality "1"]
[TimeControl "5400+30"]

1. e4 {[%emt 0:00:00]} e5 {[%emt 0:02:02]} 2. Nc3 {[%emt 0:00:00]} Nf6 {[%emt 0:00:58]} 3. f4 {[%emt 0:00:11]} d5 {[%emt 0:00:24]} 4. fxe5 {[%emt 0:00:13]} Nxe4 {[%emt 0:00:13]} 5. Qf3 {[%emt 0:00:08]} Nxc3 {[%emt 0:07:10]} 6. dxc3 {[%emt 0:00:37]} Qh4+ {[%emt 0:07:43]} 7. g3 {[%emt 0:00:11]} Qe4+ {[%emt 0:00:06]} 8. Qxe4 {[%emt 0:00:19]} dxe4 {[%emt 0:00:05]} 9. Bg2 {[%emt 0:01:56]} Bf5 {[%emt 0:04:56]} 10. Ne2 {[%emt 0:02:05]} Nd7 {[%emt 0:05:56]} 11. Bf4 {[%emt 0:07:10]} c5 {[%emt 0:07:22]} 12. O-O {[%emt 0:07:52]} Be7 {[%emt 0:03:30]} 13. Rae1 {[%emt 0:02:53]} Be6 {[%emt 0:12:15]} 14. Bxe4 {[%emt 0:05:14]} O-O-O {[%emt 0:00:51]} 15. g4 {[%emt 0:12:06]} Bxg4 {[%emt 0:02:11]} 16. Bg3 {[%emt 0:00:44]} Rhf8 {[%emt 0:05:04]} 17. Nf4 {[%emt 0:03:23]} Nxe5 {[%emt 0:05:24]} 18. Bxb7+ {[%emt 0:07:58]} Kxb7 {[%emt 0:00:25]} 19. Rxe5 {[%emt 0:00:03]} Rd7 {[%emt 0:04:19]} 20. Rfe1 {[%emt 0:02:13]} Bd6 {[%emt 0:01:04]} 21. Rg5 {[%emt 0:03:58]} Bxf4 {[%emt 0:00:09]} 22. Bxf4 {[%emt 0:00:06]} f5 {[%emt 0:00:31]} 23. Kg2 {[%emt 0:00:08]} Rf6 {[%emt 0:03:54]} 24. Be5 {[%emt 0:01:29]} Re6 {[%emt 0:00:29]} 25. Bg3 {[%emt 0:00:10]} Rxe1 {[%emt 0:03:18]} 26. Bxe1 {[%emt 0:00:25]} g6 {[%emt 0:00:06]} 27. h3 {[%emt 0:00:42]} Rd6 {[%emt 0:03:22]} 28. hxg4 {[%emt 0:03:16]} h6 {[%emt 0:00:06]} 29. Rxf5 {[%emt 0:00:28]} gxf5 {[%emt 0:00:06]} 30. gxf5 {[%emt 0:00:02]} Rf6 {[%emt 0:00:22]} 31. Bd2 {[%emt 0:00:50]} h5 {[%emt 0:00:14]} 32. Be3 {[%emt 0:00:32]} Rxf5 {[%emt 0:00:35]} 33. c4 {[%emt 0:01:11]} Kc6 {[%emt 0:01:55]} 34. c3 {[%emt 0:00:22]} a5 {[%emt 0:02:03]} 35. b3 {[%emt 0:00:22]} h4 {[%emt 0:01:52]} 36. Bg1 {[%emt 0:02:48]} h3+ {[%emt 0:01:57]} 0-1

[Event "VIII Lorca Open-A 2019"]
[Site "Lorca"]
[Date "2019.12.29"]
[Round "7.6"]
[White "Krysa, Leandro"]
[Black "Merario Alarcon, Andres"]
[Result "1-0"]
[ECO "E75"]
[WhiteElo "2527"]
[BlackElo "2417"]
[Annotator "ChessBase"]
[PlyCount "43"]
[EventDate "2019.12.26"]
[EventType "swiss"]
[EventCountry "ESP"]
[SourceTitle "playchess.com"]
[Source "ChessBase"]
[SourceQuality "1"]
[TimeControl "5400+30"]

1. c4 {[%emt 1:30:30]} Nf6 {[%emt 1:30:30]} 2. d4 {[%emt 0:00:30]} g6 {[%emt 0:00:30]} 3. Nc3 {[%emt 0:00:30]} Bg7 {[%emt 0:00:30]} 4. e4 {[%emt 0:00:30]} d6 {[%emt 0:00:30]} 5. Be2 {[%emt 0:00:30]} O-O {[%emt 0:00:30]} 6. Bg5 {[%emt 0:00:30]} c5 {[%emt 0:00:30]} 7. d5 {[%emt 0:00:30]} e6 {[%emt 0:00:30]} 8. Qd2 {[%emt 0:00:30]} exd5 {[%emt 0:00:30]} 9. exd5 {[%emt 0:00:30]} Qb6 {[%emt 0:00:30]} 10. Nf3 {[%emt 0:00:30]} Bf5 {[%emt 0:00:30]} 11. Nh4 {[%emt 0:00:30]} Ne4 {[%emt 0:00:30]} 12. Nxe4 {[%emt 0:00:30]} Bxe4 {[%emt 0:00:30]} 13. f3 {[%emt 0:00:30]} h6 {[%emt 0:00:30]} 14. Bxh6 {[%emt 0:00:30]} Bxh6 {[%emt 0:00:30]} 15. Qxh6 {[%emt 0:00:30]} Qxb2 {[%emt 0:00:30]} 16. O-O {[%emt 0:00:30]} Bc2 {[%emt 0:00:30]} 17. Rac1 {[%emt 0:00:30]} Nd7 {[%emt 0:00:30]} 18. Rf2 {[%emt 0:00:30]} Ba4 {[%emt 0:00:30]} 19. Bd1 {[%emt 0:00:30]} Qa3 {[%emt 0:00:30]} 20. Bxa4 {[%emt 0:00:30]} Qxa4 {[%emt 0:00:30]} 21. f4 {[%emt 0:00:30]} Nf6 {[%emt 0:00:30]} 22. Nf5 {[%emt 0:00:30]} 1-0

[Event "VIII Lorca Open-A 2019"]
[Site "Lorca"]
[Date "2019.12.29"]
[Round "7.7"]
[White "Arias Igual, Alejandro"]
[Black "Klekowski, Maciej"]
[Result "0-1"]
[ECO "E17"]
[WhiteElo "2208"]
[BlackElo "2514"]
[Annotator "ChessBase"]
[PlyCount "80"]
[EventDate "2019.12.26"]
[EventType "swiss"]
[EventCountry "ESP"]
[SourceTitle "playchess.com"]
[Source "ChessBase"]
[SourceQuality "1"]
[TimeControl "5400+30"]

1. Nf3 {[%emt 0:00:15]} Nf6 {[%emt 0:00:49]} 2. c4 {[%emt 0:02:01]} e6 {[%emt 0:00:45]} 3. g3 {[%emt 0:01:30]} b6 {[%emt 0:00:05]} 4. Bg2 {[%emt 0:01:31]} Bb7 {[%emt 0:00:05]} 5. O-O {[%emt 0:00:28]} Be7 {[%emt 0:00:04]} 6. b3 {[%emt 0:02:54]} O-O {[%emt 0:00:17]} 7. Bb2 {[%emt 0:00:31]} d5 {[%emt 0:00:57]} 8. d4 {[%emt 0:03:03]} dxc4 {[%emt 0:11:13]} 9. bxc4 {[%emt 0:00:35]} c5 {[%emt 0:00:32]} 10. e3 {[%emt 0:05:33]} Qc8 {[%emt 0:01:27]} 11. Nbd2 {[%emt 0:00:54]} Ne4 {[%emt 0:06:24]} 12. d5 {[%emt 0:14:45]} exd5 {[%emt 0:07:35]} 13. cxd5 {[%emt 0:00:32]} Bxd5 {[%emt 0:01:15]} 14. Ne5 {[%emt 0:02:10]} Nf6 {[%emt 0:01:22]} 15. e4 {[%emt 0:08:12]} Bb7 {[%emt 0:00:17]} 16. Nec4 {[%emt 0:00:58]} Rd8 {[%emt 0:03:30]} 17. e5 {[%emt 0:05:37]} Ne8 {[%emt 0:02:18]} 18. Bxb7 {[%emt 0:13:23]} Qxb7 {[%emt 0:00:26]} 19. Qe2 {[%emt 0:02:08]} Nc6 {[%emt 0:01:18]} 20. e6 {[%emt 0:03:20]} Bf6 {[%emt 0:03:37]} 21. Ne4 {[%emt 0:04:58]} Bxb2 {[%emt 0:00:27]} 22. Qxb2 {[%emt 0:00:32]} Nd4 {[%emt 0:00:32]} 23. Nxc5 {[%emt 0:03:37]} Qd5 {[%emt 0:02:23]} 24. exf7+ {[%emt 0:02:20]} Kxf7 {[%emt 0:00:05]} 25. Ne3 {[%emt 0:05:54]} Qxc5 {[%emt 0:00:27]} 26. Rac1 {[%emt 0:00:36]} Qe5 {[%emt 0:00:12]} 27. Kh1 {[%emt 0:02:46]} Rac8 {[%emt 0:02:25]} 28. Rce1 {[%emt 0:01:38]} Nf3 {[%emt 0:01:49]} 29. Qxe5 {[%emt 0:04:10]} Nxe5 {[%emt 0:00:05]} 30. Re2 {[%emt 0:00:49]} Nc4 {[%emt 0:02:01]} 31. Nxc4 {[%emt 0:01:39]} Rxc4 {[%emt 0:00:05]} 32. Rfe1 {[%emt 0:00:13]} Rc7 {[%emt 0:00:04]} 33. Kg2 {[%emt 0:00:32]} Nf6 {[%emt 0:00:04]} 34. h3 {[%emt 0:01:08]} h5 {[%emt 0:00:04]} 35. f3 {[%emt 0:02:02]} Rcd7 {[%emt 0:00:07]} 36. g4 {[%emt 0:00:11]} Rd2 {[%emt 0:00:03]} 37. Kg3 {[%emt 0:00:25]} Rxe2 {[%emt 0:00:03]} 38. Rxe2 {[%emt 0:00:08]} Rd5 {[%emt 0:00:17]} 39. h4 {[%emt 0:00:46]} hxg4 {[%emt 0:00:04]} 40. fxg4 {[%emt 0:00:09]} Rd3+ {[%emt 0:00:04]} 0-1

[Event "VIII Lorca Open-A 2019"]
[Site "Lorca"]
[Date "2019.12.29"]
[Round "7.8"]
[White "Godbole, Atharva"]
[Black "Sadzikowski, Daniel"]
[Result "0-1"]
[ECO "C91"]
[WhiteElo "2148"]
[BlackElo "2504"]
[Annotator "RC"]
[PlyCount "58"]
[EventDate "2019.12.26"]
[EventType "swiss"]
[EventCountry "ESP"]
[SourceTitle "playchess.com"]
[Source "ChessBase"]
[SourceQuality "1"]
[TimeControl "5400+30"]

1. e4 {[%emt 0:00:00]} e5 {[%emt 0:00:24]} 2. Nf3 {[%emt 0:00:06]} Nc6 {[%emt 0:00:05]} 3. Bb5 {[%emt 0:00:05]} a6 {[%emt 0:00:53]} 4. Ba4 {[%emt 0:00:05]} Nf6 {[%emt 0:00:06]} 5. O-O {[%emt 0:00:04]} Be7 {[%emt 0:00:08]} 6. Re1 {[%emt 0:00:06]} b5 {[%emt 0:00:05]} 7. Bb3 {[%emt 0:00:04]} d6 {[%emt 0:00:36]} 8. c3 {[%emt 0:00:04]} O-O {[%emt 0:00:08]} 9. d4 {[%emt 0:00:30]} Bg4 {[%emt 0:00:17]} 10. d5 {[%emt 0:00:05]} Na5 {[%emt 0:00:11]} 11. Bc2 {[%emt 0:00:06]} Qc8 {[%emt 0:00:07]} 12. h3 {[%emt 0:05:08]} Bd7 {[%emt 0:00:11]} 13. Nbd2 {[%emt 0:00:56]} c6 {[%emt 0:00:08]} 14. dxc6 {[%emt 0:01:42]} Qxc6 {[%emt 0:00:08]} 15. Nf1 {[%emt 0:00:22]} Rfc8 {[%emt 0:00:01]} 16. Ng3 {[%emt 0:09:11]} Rab8 {[%emt 0:00:11]} 17. a3 {[%emt 0:01:58]} g6 {[%emt 0:00:15]} 18. Bg5 {[%emt 0:03:19]} Qc7 {[%emt 0:02:57]} 19. Nh4 {[%emt 0:02:44]} Qd8 {[%emt 0:13:13]} 20. Qf3 {[%emt 0:04:14]} Ne8 {[%emt 0:04:01]} 21. Bxe7 {[%emt 0:12:53]} Qxe7 {[%emt 0:00:07]} 22. Nhf5 {[%emt 0:00:34]} gxf5 {[%emt 0:00:22]} 23. exf5 {[%emt 0:00:23]} Nf6 {[%emt 0:05:28]} 24. Nh5 {[%emt 0:01:05]} Nxh5 {[%emt 0:01:09]} 25. Qxh5 {[%emt 0:00:06]} f6 {[%emt 0:00:11]} 26. Re3 {[%emt 0:01:50]} Kh8 {[%emt 0:00:42]} 27. g4 {[%emt 0:01:04]} Rg8 {[%emt 0:04:17]} 28. Rg3 {[%emt 0:00:08]} Rg5 {[%emt 0:01:59]} 29. Qh4 {[%emt 0:00:07]} Bc6 {[%emt 0:01:51]} 0-1